fUSD/lending_fUSD_20240211
["ID","MTS","AMOUNT","RATE_DAILY","PERIOD"]
[313734289,1707633046684,-179.39259849,0.00022785,2]
[313734290,1707633046694,-150.0,0.00022795,2]
[313734291,1707633046703,-346.65030451,0.00022796,2]
[313734292,1707633046713,-150.0,0.00022801,2]
[313734293,1707633046722,-150.0,0.0002281,2]
[313734294,1707633046733,-150.0,0.00022814,2]
[313734295,1707633046743,-200.0,0.00022815,2]
[313734296,1707633046753,-800.0,0.00022815,2]
[313734297,1707633046762,-800.0,0.00022816,2]
[313734298,1707633046771,-800.0,0.00022816,2]
[313734299,1707633046780,-800.0,0.00022816,2]
[313734300,1707633046789,-150.0,0.0002282,2]
[313734301,1707633046798,-150.0,0.00022823,2]
[313734302,1707633046807,-300.0,0.00022824,2]
[313734303,1707633046817,-150.0,0.00022828,2]
[313734304,1707633046826,-150.0,0.00022832,2]
[313734305,1707633046835,-179.39259849,0.00022843,2]
[313734306,1707633046844,-150.29,0.00022846,2]
[313734307,1707633046853,-346.65030451,0.00022848,2]
[313734308,1707633046862,-3074.27641612,0.0002285,2]
[313734309,1707633046872,-150.0,0.00022857,2]
[313734310,1707633046881,-150.0,0.00022862,2]
[313734311,1707633046890,-150.0,0.00022866,2]
[313734312,1707633046900,-150.0,0.00022869,2]
[313734313,1707633046909,-150.0,0.00022872,2]
[313734314,1707633046918,-150.0,0.00022874,2]
[313734315,1707633046927,-150.0,0.00022875,2]
[313734316,1707633046936,-150.0,0.00022881,2]
[313734317,1707633046945,-150.0,0.00022882,2]
[313734318,1707633046954,-1500.0,0.0002289,2]
[313734319,1707633046963,-150.0,0.00022892,2]
[313734320,1707633046971,-150.0,0.00022895,2]
[313734321,1707633046980,-150.0,0.00022897,2]
[313734322,1707633046990,-247.90478129,0.00022898,2]
[313734323,1707633046999,-454.81,0.000229,2]
[313734324,1707633047008,-346.65030451,0.000229,2]
[313734325,1707633047017,-5000.0,0.000229,2]
[313734326,1707633047026,-179.39259849,0.000229,2]
[313734327,1707633047035,-590.47408186,0.000229,2]
[313734328,1707633048986,250.0,0.0002185,2]
[313734329,1707633053077,902.56929306,0.00021413,2]
[313734330,1707633075201,6183.24074932,0.0002165,2]
[313734331,1707633079957,4403.00908042,0.0002165,2]
[313734332,1707633080001,308.33638652,0.00021413,2]
[313734333,1707633084502,623.15304015,0.00021413,2]
[313734334,1707633088379,1030.35883244,0.00021413,2]
[313734335,1707633113909,427.72,0.00021969,2]
[313734336,1707633122528,500.0,0.00021977,2]
[313734337,1707633125926,420.23,0.00021956,2]
[313734338,1707633125973,182.32,0.00021956,2]
[313734339,1707633196227,302.7582,0.00021977,2]
[313734340,1707633199766,156.09926764,0.0002193,2]
[313734341,1707633253332,170.23,0.00017285,2]
[313734342,1707633278586,2000.0,0.00021561,2]
[313734343,1707633320513,840.0,0.00021519,2]
[313734344,1707633411904,177.2,0.00022,2]
[313734345,1707633424119,203.0,0.00021711,2]
[313734346,1707633436514,250.0,0.00021918,2]
[313734347,1707633479817,880.37,0.00019589,2]
[313734348,1707633480001,880.37,0.00021853,2]
[313734349,1707633495376,150.29,0.00021668,2]
[313734350,1707633514591,165.99,0.00021507,2]
[313734351,1707633532578,250.0,0.00021542,2]
[313734352,1707633545500,237.24,0.00021507,2]
[313734353,1707633558951,200.0,0.00021508,2]
[313734354,1707633602875,1558.62,0.00021581,2]
[313734355,1707633662998,189.91,0.00021572,2]
[313734356,1707633753859,203.0,0.00021946,2]
[313734357,1707633776276,31781.37253236,0.0002,2]
[313734358,1707633776304,1468218.62746764,0.0002,2]
[313734359,1707633827258,2000.0,0.00021679,2]
[313734360,1707633829169,23900.0,0.00021688,2]
[313734361,1707633866260,328.0,0.00021686,2]
[313734362,1707633900058,250.0,0.00021918,2]
[313734363,1707634022430,151.0211,0.00022,3]
[313734364,1707634025751,151.0211,0.00022,3]
[313734365,1707634026678,151.0211,0.00022,3]
[313734366,1707634033254,200.0,0.00021718,2]
[313734367,1707634043639,151.0211,0.00022,3]
[313734368,1707634044410,151.0211,0.00022,3]
[313734369,1707634045270,151.0211,0.00022,3]
[313734370,1707634046109,151.0211,0.00022,3]
[313734371,1707634046745,177.2,0.00022,2]
[313734372,1707634046878,151.0211,0.00022,3]
[313734373,1707634047609,151.0211,0.00022,3]
[313734374,1707634055282,5215.75142874,0.00021918,2]
[313734375,1707634060820,24058.62307851,0.00021808,2]
[313734376,1707634061310,6113.14568671,0.00021918,2]
[313734377,1707634062193,12060.21193095,0.00021918,2]
[313734378,1707634065836,11986.5922,0.00021916,2]
[313734379,1707634067142,25529.72709422,0.00020491,5]
[313734380,1707634067548,19060.45549088,0.00021918,2]
[313734381,1707634068460,157.0211,0.00022,3]
[313734382,1707634069578,157.0211,0.00022,3]
[313734383,1707634073237,5210.20528345,0.00021918,2]
[313734384,1707634076301,3199.99191868,0.00022,7]
[313734385,1707634077829,6878.2438,0.00021908,14]
[313734386,1707634078338,4536.93,0.00021632,2]
[313734387,1707634079303,5710.60620837,0.00022,2]
[313734388,1707634080832,364.34693458,0.00022,2]
[313734389,1707634081764,156.0211,0.00022,3]
[313734390,1707634082187,12060.21193095,0.00022,2]
[313734391,1707634083961,43221.24662557,0.00022,2]
[313734392,1707634084295,19060.45549088,0.00022,2]
[313734393,1707634090228,156.09926764,0.00021904,2]
[313734394,1707634098309,2890.95599353,0.00022,7]
[313734395,1707634103817,250.0,0.00021631,2]
[313734396,1707634104194,12060.21193095,0.00022,2]
[313734397,1707634106263,19060.45549088,0.00022,2]
[313734398,1707634107826,792.33,0.000198,2]
[313734399,1707634108445,286.8487648,0.00022,2]
[313734400,1707634111506,4655.3282375,0.00019799,2]
[313734401,1707634112092,153.30214944,0.00022,2]
[313734402,1707634116854,17813.1259,0.00021929,2]
[313734403,1707634118623,8681.99,0.00021918,2]
[313734404,1707634124289,12060.21193095,0.00022,2]
[313734405,1707634124342,8715.96165877,0.00022,2]
[313734406,1707634148198,12060.21193095,0.00022,2]
[313734416,1707634159692,-973.07605628,0.00022001,2]
[313734417,1707634159713,-9137.77218277,0.00022001,7]
[313734418,1707634159733,-2819.83576095,0.00022002,2]
[313734419,1707634163318,364.34693458,0.00022,2]
[313734420,1707634164455,43221.24662557,0.00022,2]
[313734421,1707634166236,944.81841428,0.00022,2]
[313734422,1707634166263,11115.39351667,0.00022,2]
[313734423,1707634171448,23527.6,0.00021452,2]
[313734424,1707634173763,9137.77218277,0.00021373,7]
[313734425,1707634177323,150.0,0.00022,2]
[313734430,1707634185352,33522.6599,0.00021927,2]
[313734431,1707634188201,7829.08366025,0.00022,2]
[313734432,1707634191500,179.22,0.00021404,2]
[313734433,1707634191688,179.22,0.00026755,120]
[313734434,1707634193418,336.18,0.00021404,2]
[313734435,1707634195370,7824.17833046,0.00022,2]
[313734436,1707634195764,9137.77218277,0.00021318,7]
[313734437,1707634197660,237.24,0.00021415,2]
[313734438,1707634202965,7143.20831576,0.00022,5]
[313734443,1707634214044,9137.77218277,0.00021318,7]
[313734444,1707634226654,8346.84,0.00021433,2]
[313734445,1707634229766,9137.77218277,0.00021318,7]
[313734460,1707634231724,-5436.0,0.00022001,2]
[313734461,1707634231733,-150.0,0.00022002,2]
[313734462,1707634231743,-738.07,0.00022026,2]
[313734463,1707634231752,-723.25,0.00022027,2]
[313734465,1707634231761,-736.54,0.00022027,2]
[313734466,1707634231772,-726.5,0.00022027,2]
[313734467,1707634231781,-715.29,0.00022027,2]
[313734468,1707634231791,-712.14,0.00022028,2]
[313734469,1707634231799,-734.08,0.00022029,2]
[313734470,1707634231809,-730.54,0.0002203,2]
[313734471,1707634231818,-499.99,0.0002203,2]
[313734472,1707634231827,-710.79,0.0002203,2]
[313734473,1707634231836,-736.22,0.0002203,2]
[313734474,1707634231845,-792.33,0.00022064,2]
[313734475,1707634231855,-156.09926764,0.00022103,2]
[313734476,1707634231864,-203.0,0.00022214,2]
[313734477,1707634231874,-710.45,0.00022243,2]
[313734478,1707634231883,-709.84,0.00022243,2]
[313734479,1707634231892,-156.09926764,0.00022302,2]
[313734480,1707634231901,-7143.20831576,0.0002244,5]
[313734481,1707634231911,-494.52200213,0.00022441,2]
[313734482,1707634231920,-7824.17833046,0.00022441,2]
[313734483,1707634231929,-410.86281418,0.00022442,2]
[313734484,1707634232074,-2258.15495185,0.00022442,2]
[313734485,1707634232088,-669.24601051,0.00022442,2]
[313734486,1707634232104,-2025.38731659,0.00022442,2]
[313734487,1707634232115,-1934.24120179,0.00022442,2]
[313734488,1707634232126,-284.49703418,0.00022442,2]
[313734490,1707634232183,-5605.88473881,0.00022442,2]
[313734504,1707634238184,-764.7379278,0.00022442,2]
[313734506,1707634238196,-636.64701375,0.00022442,2]
[313734515,1707634240490,-364.34693458,0.00022441,2]
[313734516,1707634240499,-64146.69731197,0.00022442,2]
[313734517,1707634241319,-48193.36553268,0.00022442,2]
[313734533,1707634242776,-1560.0,0.00022442,2]
[313734535,1707634242787,-2172.25771036,0.00022442,2]
[313734537,1707634242803,-937.480368,0.00022442,2]
[313734542,1707634242841,-338.20311739,0.00022442,2]
[313734546,1707634242852,-4858.79096017,0.00022442,2]
[313734548,1707634242864,-6212.80051569,0.00022442,2]
[313734550,1707634242875,-773.47083499,0.00022442,2]
[313734552,1707634242886,-1070.69986862,0.00022442,2]
[313734555,1707634242907,-415.21587112,0.00022442,2]
[313734556,1707634242918,-926.38502705,0.00022442,2]
[313734557,1707634242930,-666.41,0.00022442,2]
[313734559,1707634242960,-2278.81377185,0.00022442,2]
[313734561,1707634242972,-636.88921262,0.00022442,2]
[313734564,1707634242983,-6855.90067227,0.00022442,2]
[313734569,1707634243024,-11719.07622168,0.00022442,2]
[313734571,1707634243145,-8080.28742592,0.00022442,2]
[313734572,1707634243159,-2996.89512943,0.00022442,2]
[313734573,1707634243171,-263.893608,0.00022442,2]
[313734574,1707634243183,-6060.082754,0.00022442,2]
[313734589,1707634245838,-5031.18310789,0.00022441,2]
[313734591,1707634245848,-3501.98703068,0.00022441,5]
[313734594,1707634245860,-1500.0,0.00022441,5]
[313734605,1707634246009,-1355.00000004,0.00022441,5]
[313734609,1707634246215,-0.20602547,0.00022441,5]
[313734610,1707634288852,10000.0,0.00021918,2]
[313734611,1707634290373,18701.88,0.00021581,2]
[313734612,1707634321645,5264.23508838,0.000155,2]
[313734613,1707634325959,411.03995021,0.0002,2]
[313734614,1707634328103,31003.25,0.00021544,2]
[313734615,1707634328244,4499.39650214,0.000199,3]
[313734616,1707634343850,23900.0,0.00021548,2]
[313734617,1707634348732,1889.62840885,0.00015,2]
[313734618,1707634354222,5844.94682051,0.0001683,2]
[313734619,1707634367985,250.0,0.00021918,2]
[313734620,1707634396239,1457.34163117,0.0001305,2]
[313734621,1707634396669,239.786142,0.000101,2]
[313734622,1707634397623,2000.0,0.00021516,2]
[313734623,1707634424441,25185.89,0.000215,2]
[313734624,1707634445793,151.0211,0.00022,3]
[313734625,1707634450886,8848.9789,0.0002,2]
[313734626,1707634450907,14296.02012006,0.0002,2]
[313734627,1707634450952,151.0211,0.00022,3]
[313734628,1707634451540,151.0211,0.00022,3]
[313734629,1707634452187,151.0211,0.00022,3]
[313734630,1707634452880,151.0211,0.00022,3]
[313734631,1707634453637,151.0211,0.00022,3]
[313734632,1707634454419,151.0211,0.00022,3]
[313734633,1707634455083,151.0211,0.00022,3]
[313734634,1707634455769,151.0211,0.00022,3]
[313734635,1707634458070,737.6,0.00021457,2]
[313734636,1707634470366,6662.838901,0.00025,30]
[313734637,1707634506086,11138.07,0.00021402,2]
[313734638,1707634515442,50822.0,0.000279,120]
[313734639,1707634544212,11136.99,0.00021418,2]
[313734640,1707634580846,250.0,0.00021418,2]
[313734641,1707634585214,155.0,0.00021417,2]
[313734642,1707634588213,11900.0,0.00021918,2]
[313734643,1707634601883,160.6,0.0002158,2]
[313734644,1707634602075,160.6,0.00021861,2]
[313734645,1707634643549,713.09,0.00019459,2]
[313734646,1707634643764,713.09,0.00021723,2]
[313734647,1707634675346,189.91,0.0002137,2]
[313734648,1707634681876,177.2,0.0002167,2]
[313734649,1707634685182,14085.26,0.00021526,2]
[313734650,1707634693068,167.58,0.00021982,2]
[313734651,1707634695442,500.0,0.00022,2]
[313734652,1707634747338,10000.0,0.00021918,2]
[313734653,1707634751439,3780.77,0.00021319,2]
[313734655,1707634804633,203.0,0.00021517,2]
[313734656,1707634820774,23900.0,0.00021316,2]
[313734657,1707634858482,2000.0,0.00021352,2]
[313734658,1707634880299,250.0,0.00021918,2]
[313734659,1707634898844,-364.34693458,0.00022066,2]
[313734660,1707634898866,-358.4877294,0.00022066,2]
[313734661,1707634898887,-403.21425159,0.00022067,2]
[313734662,1707634898908,-873.95108443,0.00022103,7]
[313734663,1707634899483,-2000.0,0.00022103,7]
[313734664,1707634900062,-2000.0,0.00022103,7]
[313734665,1707634900418,-2000.0,0.00022103,7]
[313734666,1707634900780,-2000.0,0.00022103,7]
[313734667,1707634901097,-263.82109834,0.00022103,7]
[313734668,1707634901118,-1736.17890166,0.00022104,2]
[313734669,1707634901696,-2000.0,0.00022104,2]
[313734670,1707634906042,-2000.0,0.00022104,2]
[313734671,1707634911831,-432.5,0.00022104,2]
[313734672,1707634918910,9137.77218277,0.00021041,7]
[313734673,1707634936889,6050.51893476,0.00021041,7]
[313734674,1707634953944,206.0,0.00021517,2]
[313734675,1707634980456,409.92,0.00021307,2]
[313734676,1707635037647,166.15,0.00021319,2]
[313734677,1707635053556,885.8,0.00021918,2]
[313734678,1707635061843,158.88,0.00021464,2]
[313734679,1707635062440,158.88,0.00021837,2]
[313734680,1707635082637,250.0,0.00021324,2]
[313734681,1707635087593,487.625,0.0002195,2]
[313734682,1707635101269,500.0,0.00021294,2]
[313734683,1707635111662,104801.2281213,0.0002,2]
[313734684,1707635119226,2205.92174066,0.00021106,2]
[313734685,1707635127676,125761.47374555,0.0002,2]
[313734686,1707635143215,2191.37627791,0.00021731,2]
[313734687,1707635153393,1000.0,0.0002195,2]
[313734688,1707635164350,203.0,0.00021892,2]
[313734689,1707635193756,203.0,0.00021892,2]
[313734690,1707635195780,427.85,0.00021299,2]
[313734691,1707635199862,31781.0,0.00022,30]
[313734692,1707635205241,182.34,0.00021294,2]
[313734693,1707635223419,739.04,0.00019404,2]
[313734694,1707635223631,739.04,0.00021668,2]
[313734695,1707635223747,206.0,0.00021892,2]
[313734696,1707635237251,237.25,0.00021294,2]
[313734697,1707635242506,2500.0,0.000218,7]
[313734698,1707635244600,5000.0,0.000219,7]
[313734699,1707635283167,23900.0,0.00021368,2]
[313734700,1707635304886,170.25,0.00017053,2]
[313734701,1707635316814,177.2,0.0002101,2]
[313734702,1707635318262,177.2,0.00021558,2]
[313734703,1707635319070,3545.76,0.00021327,2]
[313734704,1707635326682,157.84471614,0.0002191,2]
[313734705,1707635356324,250.0,0.00021918,2]
[313734714,1707635374710,207800.0,0.00021895,2]
[313734715,1707635380285,150.0,0.00021799,2]
[313734727,1707635413479,690.89,0.00021291,2]
[313734728,1707635428814,249.97,0.00021294,2]
[313734741,1707635432126,-364.34693458,0.00022004,2]
[313734742,1707635432136,-77119.10314477,0.00022005,2]
[313734743,1707635432210,-544.127513,0.00022005,2]
[313734744,1707635432223,-11810.48167495,0.00022005,2]
[313734749,1707635432368,-745.35826249,0.00022005,2]
[313734750,1707635432379,-14582.15752609,0.00022005,2]
[313734751,1707635432389,-22727.44003822,0.00022005,2]
[313734752,1707635432398,-130015.56271566,0.00022006,2]
[313734753,1707635432410,-300.0,0.00022007,2]
[313734754,1707635432420,-150.0,0.00022007,2]
[313734755,1707635432429,-302.1607977,0.00022008,2]
[313734756,1707635432439,-290.44836749,0.00022012,2]
[313734757,1707635432450,-290.44836749,0.00022012,2]
[313734758,1707635432464,-290.44836749,0.00022012,2]
[313734759,1707635432475,-290.44836749,0.00022012,2]
[313734760,1707635432487,-290.44836749,0.00022012,2]
[313734761,1707635432497,-290.44836749,0.00022012,2]
[313734762,1707635432508,-290.44836749,0.00022012,2]
[313734763,1707635432519,-290.44836749,0.00022012,2]
[313734765,1707635432530,-290.44836749,0.00022012,2]
[313734766,1707635432540,-290.44836749,0.00022012,2]
[313734767,1707635432551,-290.44836749,0.00022012,2]
[313734768,1707635432561,-290.44836749,0.00022012,2]
[313734769,1707635432572,-290.44836749,0.00022012,2]
[313734770,1707635432582,-290.44836749,0.00022012,2]
[313734771,1707635432593,-290.44836749,0.00022012,2]
[313734772,1707635432603,-290.44836749,0.00022012,2]
[313734773,1707635432614,-290.44836749,0.00022012,2]
[313734774,1707635432624,-290.44836749,0.00022012,2]
[313734775,1707635432635,-290.44836749,0.00022012,2]
[313734776,1707635432645,-290.44836749,0.00022012,2]
[313734777,1707635432656,-290.44836749,0.00022012,2]
[313734778,1707635432667,-290.44836749,0.00022012,2]
[313734779,1707635432678,-290.44836749,0.00022012,2]
[313734780,1707635432688,-290.44836749,0.00022012,2]
[313734781,1707635432698,-290.44836749,0.00022012,2]
[313734782,1707635432709,-290.44836749,0.00022012,2]
[313734783,1707635432719,-290.44836749,0.00022012,2]
[313734784,1707635432729,-290.44836749,0.00022012,2]
[313734785,1707635432741,-290.44836749,0.00022012,2]
[313734786,1707635432752,-290.44836749,0.00022012,2]
[313734787,1707635432763,-290.44836749,0.00022012,2]
[313734788,1707635432774,-290.44836749,0.00022012,2]
[313734789,1707635432784,-290.44836749,0.00022012,2]
[313734790,1707635432794,-290.44836749,0.00022012,2]
[313734791,1707635432805,-290.44836749,0.00022012,2]
[313734792,1707635432815,-157.84471609,0.0002202,2]
[313734793,1707635432826,-36420.7138,0.0002205,2]
[313734794,1707635432836,-177.2,0.00022106,2]
[313734795,1707635432847,-348.36,0.00022116,2]
[313734796,1707635432857,-234.18,0.00022116,2]
[313734797,1707635432867,-2584.1307,0.00022116,2]
[313734798,1707635432879,-157.84471609,0.0002213,2]
[313734799,1707635432888,-727.43,0.00022137,2]
[313734800,1707635432902,-150.99,0.00022137,2]
[313734801,1707635432912,-499.99,0.00022137,2]
[313734802,1707635432923,-155.0,0.00022148,2]
[313734803,1707635432933,-359.78900918,0.00022149,2]
[313734804,1707635432943,-3132.52,0.00022149,2]
[313734805,1707635432954,-157.67095713,0.00022174,2]
[313734806,1707635432964,-158.88,0.0002221,2]
[313734807,1707635432974,-16850.47449594,0.00022215,2]
[313734808,1707635432985,-295.68851017,0.00022217,2]
[313734809,1707635432996,-157.84471609,0.0002224,2]
[313734810,1707635433007,-681.7586,0.00022242,2]
[313734811,1707635433017,-496.9917,0.00022242,2]
[313734812,1707635433027,-2083.5792,0.00022242,2]
[313734813,1707635433037,-32316.2222,0.000223,2]
[313734814,1707635433048,-79931.59,0.000223,2]
[313734815,1707635433058,-30253.34052127,0.000223,2]
[313734816,1707635433072,-1592.29409451,0.000223,2]
[313734822,1707635438116,-33205.29701301,0.000223,2]
[313734823,1707635438226,-1484.10828739,0.000223,2]
[313734824,1707635438238,-13021.09237589,0.000223,2]
[313734825,1707635438369,-4543.46497506,0.000223,2]
[313734877,1707635441315,-624.5037373,0.000223,2]
[313734878,1707635441356,-0.08945522,0.000223,2]
[313734879,1707635441497,-397.20681402,0.000223,2]
[313734893,1707635443040,-2306.1,0.000223,2]
[313734896,1707635443096,-585.37414855,0.000223,2]
[313734897,1707635443108,-256.85596,0.000223,2]
[313734898,1707635443119,-1196.98261778,0.000223,2]
[313734899,1707635443128,-157.02761407,0.00022328,2]
[313734900,1707635443138,-245000.0,0.00022339,2]
[313734901,1707635443148,-1000.0,0.00022342,2]
[313734902,1707635443158,-157.84471609,0.0002235,2]
[313734903,1707635443168,-427.85,0.00022364,2]
[313734904,1707635443178,-243.96656157,0.00022399,2]
[313734905,1707635443187,-436666.11355146,0.00022399,2]
[313734906,1707635443196,-650.9246,0.000224,2]
[313734907,1707635443206,-8040.815,0.000224,2]
[313734908,1707635443215,-42304.62736848,0.000224,2]
[313734910,1707635443565,-968.89392,0.000224,2]
[313734911,1707635443586,-262.1892,0.000224,2]
[313734912,1707635446166,-364.06927729,0.00022338,2]
[313734913,1707635446175,-159.15046209,0.00022338,2]
[313734914,1707635446185,-34402.40257837,0.000224,2]
[313734915,1707635446226,-22061.88693315,0.000224,2]
[313734916,1707635446235,-19145.27249297,0.000224,2]
[313734917,1707635446255,-2209.14720703,0.000224,2]
[313734918,1707635446264,-10478.52909592,0.00022439,2]
[313734919,1707635446276,-824.70516459,0.00022439,2]
[313734920,1707635446287,-382.51727014,0.00022439,2]
[313734921,1707635446311,-775.24008868,0.00022439,2]
[313734922,1707635446322,-1075.5444232,0.00022439,2]
[313734923,1707635446348,-1409.24440256,0.00022439,2]
[313734924,1707635446360,-2303.15531703,0.00022439,2]
[313734925,1707635446372,-3635.93292367,0.00022439,2]
[313734926,1707635446381,-366.94083688,0.0002244,2]
[313734927,1707635446390,-267.99076631,0.0002244,2]
[313734928,1707635446399,-205.94050564,0.0002244,2]
[313734929,1707635446410,-133.36522799,0.0002244,2]
[313734930,1707635450629,302.7582,0.0002195,2]
[313734931,1707635460061,108099.8221,0.00021907,2]
[313734932,1707635476382,151.0211,0.00022,3]
[313734933,1707635476609,94277.45121792,0.00021908,2]
[313734934,1707635476635,150722.54878208,0.00021908,2]
[313734935,1707635480984,2000.0,0.00021664,2]
[313734936,1707635521247,166.03,0.00021623,2]
[313734937,1707635523727,150.0,0.00021786,2]
[313734938,1707635523749,4.29,0.00021786,2]
[313734939,1707635529009,150.0,0.00020066,2]
[313734940,1707635529030,12.25097554,0.00020066,2]
[313734942,1707635584742,100000.0,0.00021908,2]
[313734943,1707635611640,150.0,0.00021486,2]
[313734944,1707635611660,100.0,0.00021486,2]
[313734945,1707635630824,150.0,0.00021908,2]
[313734946,1707635630845,150.0,0.00021908,2]
[313734947,1707635630865,150.0,0.00021908,2]
[313734948,1707635631129,150.0,0.00021908,2]
[313734949,1707635631152,13.02255108,0.00021908,2]
[313734950,1707635633658,150.0,0.00021908,5]
[313734951,1707635633683,150.0,0.00021908,5]
[313734952,1707635633703,150.0,0.00021908,5]
[313734953,1707635633722,150.0,0.00021908,5]
[313734954,1707635633742,150.0,0.00021908,5]
[313734955,1707635633763,150.0,0.00021908,5]
[313734956,1707635633782,150.0,0.00021908,5]
[313734957,1707635633801,150.0,0.00021908,5]
[313734958,1707635633820,83.65969243,0.00021908,5]
[313734959,1707635633949,66.34030757,0.00021918,2]
[313734960,1707635633969,150.0,0.00021918,2]
[313734961,1707635633989,150.0,0.00021918,2]
[313734962,1707635634009,133.65969243,0.00021918,2]
[313734963,1707635634050,16.34030757,0.00021908,7]
[313734964,1707635634070,150.0,0.00021908,7]
[313734965,1707635634090,150.0,0.00021908,7]
[313734966,1707635634110,150.0,0.00021908,7]
[313734967,1707635634130,81.77577237,0.00021908,7]
[313734968,1707635634536,68.22422763,0.00021908,2]
[313734969,1707635634556,150.0,0.00021908,2]
[313734970,1707635634576,150.0,0.00021908,2]
[313734971,1707635634605,207.89902446,0.00021908,2]
[313734972,1707635634629,150.0,0.00021908,2]
[313734973,1707635634652,143.79503673,0.00021908,2]
[313734974,1707635635157,422.01583191,0.00021401,2]
[313734975,1707635635442,497.74555716,0.00020063,5]
[313734976,1707635636735,3142.11308564,0.00021178,2]
[313734977,1707635636787,3609.20176085,0.00021908,2]
[313734978,1707635637069,888.5103698,0.00021908,2]
[313734979,1707635637809,2333.80665974,0.00021908,2]
[313734980,1707635640020,500.0,0.00021908,2]
[313734981,1707635640206,535.79625087,0.00021908,2]
[313734982,1707635641020,567.82457551,0.0001984,2]
[313734983,1707635641161,625.03501835,0.000214,2]
[313734984,1707635641465,856.99934784,0.00021908,2]
[313734985,1707635641524,3553.21192074,0.00021908,2]
[313734986,1707635643053,1103.00995119,0.00021908,2]
[313734987,1707635644712,1028.03888059,0.00021908,2]
[313734988,1707635645059,3081.02758744,0.00021177,7]
[313734989,1707635645193,404.05961647,0.00021251,2]
[313734990,1707635645503,2486.84367964,0.00021623,2]
[313734991,1707635647496,876.83039745,0.00019936,2]
[313734992,1707635648244,404.10153138,0.00021908,2]
[313734993,1707635650060,909.25433853,0.00021908,2]
[313734994,1707635650817,613.02255108,0.00021908,2]
[313734995,1707635651640,1283.65969243,0.00021908,5]
[313734996,1707635652734,4123.23,0.00021393,2]
[313734997,1707635653006,1098.1761261,0.00021798,2]
[313734998,1707635654001,548.11607994,0.00021908,7]
[313734999,1707635654198,535.79625087,0.00021908,2]
[313735000,1707635654243,3142.11308564,0.00021177,2]
[313735001,1707635654500,869.91828882,0.00021908,2]
[313735002,1707635655153,422.01583191,0.000214,2]
[313735003,1707635656913,888.5103698,0.00021908,2]
[313735004,1707635657434,2333.80665974,0.00021908,2]
[313735005,1707635659049,1107.24900962,0.00021908,2]
[313735006,1707635659175,404.05961647,0.00021251,2]
[313735007,1707635659617,2735.48,0.00021625,2]
[313735008,1707635660016,500.0,0.00021908,2]
[313735009,1707635661239,625.03501835,0.00021181,2]
[313735010,1707635661471,856.99934784,0.00021908,2]
[313735011,1707635661499,2487.88495331,0.00021623,2]
[313735012,1707635661778,519.63661714,0.00021399,2]
[313735013,1707635664694,1028.03888059,0.00021908,2]
[313735014,1707635664945,5016.64627389,0.00021908,2]
[313735015,1707635667037,1049.38214179,0.0002096,7]
[313735016,1707635667645,1283.65969243,0.00021908,5]
[313735017,1707635668043,710.87707791,0.00021908,2]
[313735018,1707635668120,2982.6861,0.00021965,2]
[313735019,1707635669218,876.83039745,0.00019936,2]
[313735020,1707635669269,526.28522185,0.00021908,2]
[313735021,1707635670650,2513.90859555,0.0002,2]